Cogmind - Beta 13 @@@ ROGUE MODE // 2024.06.17 @ 22:07:12 Player: monkeman Result: Destroyed by TE-YP7(R) with Subdweller Machine Gun Performance ------------- Evolutions (0) 0 Regions Visited (2) 400 Robots Destroyed (22) 110 Value Destroyed (473) 473 Prototype IDs (4) 80 Alien Tech Used (0) 0 Bonus (0) 0 TOTAL SCORE: 1063 Bonus ------- None Cogmind --------- Core Integrity 0/250 Matter 147/300 Energy 124/125 System Corruption 0% Temperature Cool (0) Movement Treading (160) Location -10/Subcaves Parts ------- > --- POWER (1) -------- Light Ion Engine > --- PROPULSION (2) --- Light Treads Spiked Treads > --- UTILITY (2) ------ Large Storage Unit Makeshift Light Armor Plating > --- WEAPON (2) ------- Subdweller Machine Gun Subdweller Shrapnel Launcher > --- INVENTORY (15) --- Meta Core Light Treads Subdweller Monowheel Huge Storage Unit Medium Matter Pod (100) Signal Interpreter Improved Terrain Scanner Riot Gun Subdweller Laser Subdweller Beam Cannon Subdweller Beam Cannon Subdweller Machine Gun Grenade Launcher Datajack Peak State ------------ > --- POWER ------------ Light Ion Engine > --- PROPULSION ------- Light Treads Spiked Treads > --- UTILITY ---------- Large Storage Unit Makeshift Light Armor Plating > --- WEAPON ----------- Subdweller Laser Subdweller Machine Gun > --- INVENTORY -------- Meta Core Light Treads Light Treads Subdweller Monowheel Huge Storage Unit Medium Matter Pod Signal Interpreter Improved Terrain Scanner Small Laser Subdweller Laser Subdweller Beam Cannon Subdweller Beam Cannon Grenade Launcher Subdweller Shrapnel Launcher Datajack [Rating: 16] Favorites ----------- Power Light Ion Engine Engine Light Ion Engine Propulsion Light Treads Treads Light Treads Utility Large Storage Unit Device Seismic Detector Storage Large Storage Unit Protection Core Shielding Weapon Assault Rifle Energy Gun Small Laser Ballistic Gun Assault Rifle Launcher Grenade Launcher Build | -11 -10 -10 ------- Run | Yrd Mat Sub Slots Evolved . | . . . Power . | . . . Propulsion . | . . . Utility . | . . . Weapon . | . . . Parts Attached 22 | 7 4 11 Power 3 | 1 . 2 Engine 3 | 1 . 2 Core . | . . . Reactor . | . . . Propulsion 5 | 2 . 3 Treads 5 | 2 . 3 Leg . | . . . Wheel . | . . . Hover . | . . . Flight . | . . . Utility 5 | 2 2 1 Device 1 | 1 . . Storage 2 | 1 1 . Processor . | . . . Hackware . | . . . Protection 2 | . 1 1 Artifact . | . . . Weapon 9 | 2 2 5 Energy Gun 4 | 1 2 1 Energy Cannon . | . . . Ballistic Gun 3 | 1 . 2 Ballistic Cannon . | . . . Launcher 2 | . . 2 Special Weapon . | . . . Impact Weapon . | . . . Slashing Weapon . | . . . Piercing Weapon . | . . . Special Melee Weapon . | . . . Unidentified Prototypes . | . . . Parts Lost 7 | . 2 5 Power 1 | . . 1 Propulsion 2 | . . 2 Utility 1 | . 1 . Weapon 3 | . 1 2 Highest Loss Streak 2 | . 2 2 To Critical Strikes . | . . . Average Slot Usage (%) 99 | . 99 99 Engine 13 | . 14 13 Treads 28 | . 28 28 Device 4 | . 9 . Storage 14 | . 14 14 Protection 9 | . 3 14 Energy Gun 15 | . 14 16 Ballistic Gun 12 | . 14 10 Naked Turns . | . . . Heaviest Build 39 | 12 28 39 Greatest Support 40 | 40 40 40 Greatest Overweight (x) 1 | 1 . . Average Overweight (x) . | . . . Largest Inventory Capacity 15 | 8 15 15 Average Capacity 12 | 7 10 15 Most Carried 15 | 3 9 15 Average Carried 10 | 1 6 14 Final Capacity 15 | 8 15 15 Final Carried 14 | 3 9 14 Class Distribution -------------------- 100% | Mutant Dominant Class ---------------- Mutant | -10/Materials Mutant | -10/Subcaves Resources | -11 -10 -10 ----------- Run | Yrd Mat Sub Matter Collected 619 | 175 165 279 Remotely . | . . . Salvage Created 671 | 19 383 269 Parts 49 | 4 27 18 Haulers Intercepted 1 | . 1 . Recyclers Shooed 2 | 1 1 . Parts Field Recycled . | . . . Retrieved Matter . | . . . Parts Self-Destructed 7 | . . 7 Prevented . | . . . Kills | -11 -10 -10 ------- Run | Yrd Mat Sub Combat Hostiles Destroyed 16 | . 6 10 Guns 10 | . 4 6 AOE 6 | . 2 4 Classes Destroyed 9 | 1 6 2 Worker 1 | . 1 . Tunneler 1 | 1 . . Hauler 1 | . 1 . Recycler 1 | . 1 . Watcher 2 | . 2 . Swarmer 7 | . 3 4 Grunt 3 | . 3 . Cobbler 1 | . . 1 Subdweller 6 | . . 6 Best Kill Streak 4 | 1 3 4 Combat Bots Only 4 | . 3 4 Max Kills in Single Turn 3 | 1 2 3 Gunslinging . | . . . Exploded 3 | . 2 3 Melee . | . . . Uniques/NPCs Destroyed . | . . . Combat | -11 -10 -10 -------- Run | Yrd Mat Sub Hostile Shots Fired 117 | . 37 80 Missed 34 | . 14 20 Damage Taken 1377 | . 233 1144 Core 257 | . 34 223 Absorbed by Shields . | . . . Redirected to Shielding 30 | . . 30 Core Remaining (%) 100 | 100 . . Volleys Fired 66 | 2 27 37 Largest 2 | 2 2 2 Hottest 100 | 60 60 100 Shots Fired 127 | 4 51 72 Gun 120 | 4 51 65 Cannon . | . . . Launcher 7 | . . 7 Special . | . . . Kinetic 68 | 2 27 39 Thermal 46 | 2 12 32 Explosive 1 | . . 1 Electromagnetic 12 | . 12 . Robot Hit Streak 19 | 3 7 19 Robot Miss Streak 8 | 1 8 2 Penetration Max . | . . . Secondary Targets 1 | . . 1 Max Gunslinging Chain 1 | . . 1 Shots Hit Robots 83 | 3 29 51 Core Hits 41 | 1 17 23 Critical Kills . | . . . Critical Parts Destroyed . | . . . Critical Strikes . | . . . Melee Attacks . | . . . Impact . | . . . Slashing . | . . . Piercing . | . . . Sneak Attacks . | . . . Combat Hostiles . | . . . Follow-up Attacks . | . . . Damage Inflicted 1930 | 39 438 1453 Guns 1182 | 39 358 785 Cannons . | . . . Explosions 748 | . 80 668 Melee . | . . . Ramming . | . . . Kinetic 1211 | 28 194 989 Thermal 549 | 11 187 351 Explosive 113 | . . 113 Electromagnetic 57 | . 57 . Impact . | . . . Slashing . | . . . Piercing . | . . . Highest Corruption . | . . . Average Corruption . | . . . Corruption Purged . | . . . Corruption Blocked . | . . . Overload Shots . | . . . Overflow Damage . | . . . Projectiles . | . . . Explosions . | . . . Melee . | . . . Knockbacks . | . . . Impact . | . . . Kinetic . | . . . Secondary . | . . . Self-Inflicted Damage 56 | . . 56 Shots 3 | . . 3 Rammed . | . . . Targets Rammed . | . . . Kicked . | . . . Crushed . | . . . Highest Temperature 27 | . 27 . Average Temperature 18 | . 18 . Received Heat Transfer 273 | . 51 222 Siege Activations . | . . . Robots Corrupted . | . . . Combat Hostiles . | . . . Parts Fried . | . . . Impact Corruptions . | . . . Robots Melted . | . . . Combat Hostiles . | . . . Parts Melted 1 | . . 1 Heat Transferred 975 | 25 350 600 Parts Sabotaged . | . . . Parts Stolen . | . . . Parts Stripped . | . . . Power Chain Reactions 1 | . 1 . Alert | -11 -10 -10 ------- Run | Yrd Mat Sub Peak Influence 172 | 5 172 . Initial 3 | . 3 . Average 48 | 3 54 . Maximum Alert Level . | . . . Low Security (%) 100 | 100 100 . Level 1 . | . . . Level 2 . | . . . Level 3 . | . . . Level 4 . | . . . Level 5 . | . . . High Security . | . . . Max Security . | . . . Squads Dispatched 1 | . 1 . Investigation . | . . . Extermination . | . . . Reinforcement 1 | . 1 . Assault . | . . . Garrison . | . . . Intercept . | . . . Searches Triggered . | . . . Construction Impeded . | . . . Haulers Reinforced . | . . . Active Scanning Responses . | . . . Cargo Convoy Interrupts . | . . . Stealth | -11 -10 -10 --------- Run | Yrd Mat Sub Distress Signals . | . . . Communications Jammed . | . . . Distress Signals . | . . . Times Spotted 35 | . 11 24 Peak Tracking Total 6 | . 3 6 Tactical Retreats 2 | . . 2 Traps | -11 -10 -10 ------- Run | Yrd Mat Sub Traps Triggered . | . . . Indirectly . | . . . Trap Hack Attempts . | . . . Triggered . | . . . Disarmed . | . . . Reprogrammed . | . . . Reused . | . . . Traps Extracted . | . . . Installed . | . . . Triggered . | . . . Machines | -11 -10 -10 ---------- Run | Yrd Mat Sub Machines Disabled . | . . . Max in Single Turn . | . . . Machines Repaired . | . . . Machines Dismantled . | . . . Machines Sabotaged . | . . . Overloaded Fab Kills . | . . . Hacking | -11 -10 -10 --------- Run | Yrd Mat Sub Machines Accessed 7 | . 6 1 Terminals 6 | . 6 . Fabricators . | . . . Repair Stations . | . . . Recycling Units . | . . . Scanalyzers . | . . . Garrison Access . | . . . Total Hacks 25 | . 22 3 Successful 13 | . 10 3 Failed 11 | . 11 . Catastrophic 2 | . 2 . Database Lockouts 1 | . 1 . Manual 13 | . 12 1 Terminals 22 | . 22 . Fabricators . | . . . Repair Stations . | . . . Recycling Units . | . . . Scanalyzers . | . . . Garrison Access . | . . . Terminal Hacks 13 | . 10 3 Record 3 | . . 3 Part Schematic 1 | . 1 . Robot Analysis 3 | . 3 . Prototype ID Bank 2 | . 2 . Locate Traps 3 | . 3 . Zone Layout 1 | . 1 . Fabricator Hacks . | . . . Repair Station Hacks . | . . . Recycling Unit Hacks . | . . . Scanalyzer . | . . . Garrison Access Hacks . | . . . Unauthorized Hacks . | . . . Terminals . | . . . Fabricators . | . . . Repair Stations . | . . . Recycling Units . | . . . Scanalyzers . | . . . Garrison Access . | . . . Data Cores Recovered . | . . . Used . | . . . Hacking Detections 5 | . 5 . Full Trace Events 1 | . 1 . Feedback Events . | . . . Feedback Blocked . | . . . Robot Schematics Acquired . | . . . Robots Built . | . . . Authchips . | . . . Time . | . . . Total Robot Build Rating . | . . . Part Schematics Acquired 1 | . 1 . Parts Built . | . . . Authchips . | . . . Time . | . . . Total Part Build Rating . | . . . Parts Repaired . | . . . Time . | . . . Parts Recycled . | . . . Recycled Matter . | . . . Retrieved Matter . | . . . Retrieved Components . | . . . Parts Scanalyzed . | . . . Part Schematics Acquired . | . . . Parts Damaged . | . . . Bothacking | -11 -10 -10 ------------ Run | Yrd Mat Sub Used RIF Installer . | . . . Robots Hacked . | . . . Non-combat . | . . . Combat . | . . . Robot Hacks Applied . | . . . Relay Couplers Released . | . . . Fabnet Peak Effective % . | . . . Robots Rewired . | . . . Allies Hacked . | . . . Hacks Repelled . | . . . Allies | -11 -10 -10 -------- Run | Yrd Mat Sub Total Allies . | . . . Largest Group . | . . . Highest-Rated Group . | . . . Highest-Rated Ally . | . . . Total Orders . | . . . Ally Attacks . | . . . Total Damage . | . . . Kills . | . . . Allies Corrupted . | . . . Allies Melted . | . . . Intel | -11 -10 -10 ------- Run | Yrd Mat Sub Robot Analysis Total 3 | . 3 . Derelict Logs Recovered . | . . . Drone Launches . | . . . Drone Recoveries . | . . . Exploration | -11 -10 -10 ------------- Run | Yrd Mat Sub Turns Passed 1467 | 75 597 795 Spaces Moved 754 | 37 315 402 Core 4 | 4 . . Treads 750 | 33 315 402 Legs . | . . . Wheels . | . . . Hover . | . . . Flight . | . . . Fastest Speed 50 | 50 160 160 Average Speed 159 | 152 160 160 Slowest Speed 160 | 160 160 160 Overloaded Moves . | . . . Propulsion Burnouts . | . . . Robots Hopped . | . . . Cave-ins Triggered . | . . . Exploration Rate (%) 32 | 4 68 26 Regions Visited 2 Branch Regions 1 Pre-discovered Areas . | . . . Known Exits Taken . | . . . Unknown Exits Taken 2 | 1 1 . Scrap Searched 4 | . . 4 Spaces Dug . | . . . Terrain Destroyed 78 | . 1 77 Melee . | . . . Projectile . | . . . AOE 78 | . 1 77 Terrain Rammed . | . . . Walls Destroyed . | . . . Machines Disabled . | . . . Actions | -11 -10 -10 --------- Run | Yrd Mat Sub Total 889 | 48 357 484 Wait 15 | . 4 11 Move 752 | 36 314 402 Hop . | . . . Pick Up 25 | 3 7 15 Fast Attach 10 | 7 1 2 Attach 5 | . 1 4 Detach . | . . . Swap 7 | . 2 5 Drop 9 | . 1 8 Fire 66 | 2 27 37 Melee . | . . . Ram . | . . . Kick . | . . . Crush . | . . . Escape Stasis . | . . . Rewire . | . . . Trap . | . . . Miscellaneous . | . . . Route ------- -11/Scrapyard -10/Materials (discovered 4 exits: [*Mat x2] / [*Min] / *Sub) -10/Subcaves History --------- Turn | Location | Event 14 | -11/Scrapyard | Discovered new exit (range 15) 76 | -11/Scrapyard | Entered Materials 108 | -10/Materials | Discovered new exit (range 16) 253 | -10/Materials | Discovered new exit (range 3) 306 | -10/Materials | Build established: Mutant 392 | -10/Materials | Central database locked down 509 | -10/Materials | Discovered new exit (range 9) 658 | -10/Materials | Discovered new exit (range 9) 673 | -10/Materials | Entered Subcaves 698 | -10/Subcaves | A Subdweller sparked back to life 698 | -10/Subcaves | A Subdweller sparked back to life 698 | -10/Subcaves | A Subdweller sparked back to life 714 | -10/Subcaves | Found Prototype Power Core 832 | -10/Subcaves | Core integrity fell below 50% 872 | -10/Subcaves | Disturbed a concealed Subdweller 1098 | -10/Subcaves | Visited Clippyterm 1447 | -10/Subcaves | Ambushed by Subdwellers from Twisted Machinery 1456 | -10/Subcaves | Core integrity fell below 20% 1457 | -10/Subcaves | Ambushed by Subdweller buried in earth 1463 | -10/Subcaves | Ambushed by Subdweller buried in earth 1467 | -10/Subcaves | Ambushed by Subdweller buried in earth 1468 | -10/Subcaves | Destroyed by TE-YP7(R) with Subdweller Machine Gun Last Messages --------------- 01243_ S-10 Pest destroyed. 01246_ Destroyed Flight Unit. 01249_ S-10 Pest destroyed. 01249_ Switching to secondary target: S-10 Pest. 01252_ S-10 Pest destroyed. 01255_ Lgt. Ion Engine fries itself beyond repair. 01255_ S-10 Pest destroyed. 01257_ Lgt. Ion Engine fries itself beyond repair. 01258_ Acquired 12 matter. 01262_ Lgt. Assault Rifle fries itself beyond repair. 01265_ Flight Unit fries itself beyond repair. 01268_ Lgt. Ion Engine fries itself beyond repair. 01272_ Lgt. Assault Rifle fries itself beyond repair. 01379_ Subatomizers dissect the Sub. Optics. 01457_ 6L-VCW(R) destroyed. 01458_ BW-PGL(R): "ARGHSUB!" 01461_ TE-YP7(R): "ARGHSUB!" 01462_ Lgt. Treads destroyed. 01464_ A3-HYZ(R): "NAT20!" 01468_ ZR-IC3(R): "ARGHSUB!" Map ----- +----------------------------------------------------+ | ?????????????????????????????????????????????????? | | ?????????????????????????????????????????????????? | | ?????????????????????????????????????????????????? | | ?????????????????????????????????????????????????? | | ?????????????????????????????????????????????????? | | ?????????????????????????????????????????????????? | | ?????????????????????????????????????????????????? | | ?????????????????????????????????????????????????? | | ?????????????????????????????????????????????????? | | ?????????????????????????????????????????????????? | | ????????????????????????? ???????????????????????? | | ????????????????????????? #??#???????????????????? | | ????????????????????????? ## ?????????????????? | | ????????????????????####? " ??????????????? | | ????????????????????# # " ???????????????? | | ???????????????????## ??????????????? | | ???????#####???????# """"?????????????? | | ??????##&# ##??????# R R ""??????????????? | | ??????#%=&!&#??????# " ???????????????? | | ??????##"&###??????# "????????????????? | | ??????###&&#???????# R #?????????????????? | | ??????# # ######???# R #?????????????????? | | ??????# " " #####; #?????????????????? | | ?????## ### ;; #?????????????????? | | ##???# ## ;; R ##??????????????????? | | ###?#### # ## @ ;;#??????????????????? | | ?????## ## ### ;##??????????????????? | | ??????# #?## ##???????????????????? | | #???????## ##?### ;;#????????????????????? | | ????????# ## ###?# ####????????????????????? | | ????????##### ### ##???????????????????????? | | ??????????## ##????????????????????????? | | ?????????## #?????????????????????????? | | ##??????## ######????????????????????? | | #??##### ## #????????????????????? | | #?## #?????????????###????? | | ### & ##??????####?## ###### | | ## ## ## ######## ### # # # | | ## ##### ## | | # #??# ## & & | | ## #?# ## # # " & | | ?# #?#### ### #### & | | ?## #???# #?# #?## "" ## | | ??# #??# ## #?# ## ##? | | ??# ## #??# ?# #?# "####?? | | ??###### #??##? ## ### # ###????? | | ??????? ##???? ##?# ### ?????? | | ???????## #???? ""##??###?### #????? | | ????????# ### #???# """"#??????????# ???? | | ???????? #??##???# """#??????????? ???? | +----------------------------------------------------+ Best States ------------- Heat Dissipation 25 Energy Generation 15 Energy Capacity 200 Matter Stores 300 Matter Capacity 300 Sight Range 16 Terrain Scan Density 10 Armor Coverage 100 Core Shielding 20 Evasion (%) 40 Recoil Reduction 2 Item Schematics ----------------- Huge Storage Unit | -10/Materials | Hacked Robot Schematics ------------------ None Fabricated ------------ Nothing Alien Tech Used ----------------- None Achievements -------------- None Challenges ------------ None Game ------ Seed ArcAlloySlayer Manual? 0 Play Time 00:09:52 Cumulative 66.2 hours Start 2024.06.17 @ 21:57:36 End 2024.06.17 @ 22:07:12 Sessions 1 Manual Loads 0 Difficulty Rogue Special Mode None Game No. 87 Rogue 87 Adventurer 0 Explorer 0 Win Type - Total 1 Types 1/0/0/0/0/0/0/0/0 Lore% 36 Gallery% 47 Achievement% 40 Wizard Run 0 Options --------- Layout 1 ASCII 0 Keyboard 0 Movement Mouse Keybinds 0 Fullscreen 1 Font 16/SmallcapsGlow Map View 55x38 Zoom Use 0% Tactical HUD 1 Map Filters NONE Filters NONE Steam 1 RUN: 8ce6347b-a633-4cff-ab40-8c7ba4037ff8